fUST/lending_fUST_20251011
["ID","MTS","AMOUNT","RATE_DAILY","PERIOD"]
[390883613,1760193021460,5000.0,0.00024254,2]
[390883645,1760193032048,-554.21,0.00024324,3]
[390883647,1760193032057,-277.1,0.00024324,3]
[390883649,1760193032066,-18.30862922,0.00024324,3]
[390883654,1760193032106,-813.04137078,0.00024324,3]
[390883656,1760193032115,-165.5,0.00024324,10]
[390883659,1760193032124,-150.0,0.00024324,2]
[390883660,1760193032134,-300.0,0.00024332,2]
[390883662,1760193032143,-300.0,0.00024332,2]
[390883664,1760193032152,-300.0,0.00024332,2]
[390883667,1760193032161,-300.0,0.00024332,2]
[390883669,1760193032170,-300.0,0.00024332,2]
[390883671,1760193032179,-5775.03814449,0.00024334,2]
[390883708,1760193033832,150.0,0.00018869,2]
[390883709,1760193034298,292.79,0.00020585,2]
[390883710,1760193034734,439.19,0.000223,2]
[390883711,1760193035127,585.58,0.00024016,2]
[390883723,1760193037879,-4698.04128397,0.00024334,2]
[390883724,1760193037890,-16320.91183825,0.00024334,2]
[390883725,1760193037902,-160937.01469109,0.00024334,2]
[390883726,1760193037911,-1000.0,0.00024334,2]
[390883727,1760193037920,-1000.0,0.00024334,2]
[390883728,1760193037929,-1000.0,0.00024334,2]
[390883729,1760193037939,-1000.0,0.00024334,2]
[390883730,1760193037948,-1000.0,0.00024334,2]
[390883731,1760193037958,-1000.0,0.00024334,2]
[390883732,1760193037967,-1000.0,0.00024334,2]
[390883733,1760193037976,-1000.0,0.00024334,2]
[390883734,1760193037985,-1000.0,0.00024334,2]
[390883735,1760193037995,-1000.0,0.00024334,2]
[390883736,1760193038004,-1000.0,0.00024334,2]
[390883737,1760193038014,-1000.0,0.00024334,2]
[390883738,1760193038024,-1000.0,0.00024334,2]
[390883739,1760193038035,-1000.0,0.00024334,2]
[390883740,1760193038045,-1000.0,0.00024334,2]
[390883741,1760193038055,-657.3435426,0.00024334,2]
[390883742,1760193038065,-200.0,0.00024334,10]
[390883743,1760193038075,-200.0,0.00024334,10]
[390883744,1760193038084,-200.0,0.00024334,10]
[390883745,1760193038094,-200.0,0.00024334,10]
[390883746,1760193038103,-200.0,0.00024334,10]
[390883747,1760193038112,-200.0,0.00024334,10]
[390883748,1760193038122,-200.0,0.00024334,10]
[390883749,1760193038131,-209.074675,0.00024334,10]
[390883750,1760193038140,-540.94335477,0.000244,2]
[390883751,1760193038149,-604.63257173,0.00024556,2]
[390883752,1760193038159,-450.58744518,0.00024556,2]
[390883753,1760193038168,-373.87450213,0.00024556,2]
[390883754,1760193038177,-438.80352934,0.00024556,2]
[390883755,1760193038187,-171.544,0.00024573,7]
[390883756,1760193038196,-181.01326445,0.00024573,7]
[390883757,1760193038206,-151.0,0.000246,9]
[390883758,1760193038217,-162.8757457,0.000246,2]
[390883759,1760193038227,-189.7226975,0.000246,2]
[390883760,1760193038238,-1176.3655114,0.000246,2]
[390883761,1760193038248,-391.9198272,0.000246,2]
[390883762,1760193038258,-391.9198272,0.000246,2]
[390883763,1760193038267,-391.9198272,0.000246,2]
[390883764,1760193038278,-391.9198272,0.000246,2]
[390883765,1760193038290,-391.9198272,0.000246,2]
[390883766,1760193038299,-692.00899326,0.000248,2]
[390883767,1760193038310,-7660.2088716,0.0002481,2]
[390883768,1760193038320,-2832.24099244,0.00024824,2]
[390883769,1760193038330,-500.0,0.00024873,2]
[390883770,1760193038340,-230.66966442,0.00024889,2]
[390883771,1760193038349,-196.0,0.0002489,11]
[390883772,1760193038358,-500.0,0.00024899,2]
[390883773,1760193038368,-500.0,0.00024899,2]
[390883774,1760193038377,-193.10639068,0.00024899,2]
[390883775,1760193038387,-500.0,0.00024899,2]
[390883776,1760193038396,-500.0,0.00024899,2]
[390883777,1760193038406,-299.12837731,0.00024899,2]
[390883778,1760193038415,-500.0,0.00024899,2]
[390883779,1760193038425,-500.0,0.00024899,2]
[390883780,1760193038435,-500.0,0.00024899,2]
[390883781,1760193038445,-500.0,0.00024899,2]
[390883782,1760193038454,-533.37794324,0.00024899,2]
[390883783,1760193038464,-500.0,0.00024899,2]
[390883784,1760193038474,-500.0,0.00024899,2]
[390883785,1760193038483,-500.0,0.00024899,2]
[390883786,1760193038492,-500.0,0.00024899,2]
[390883787,1760193038502,-500.0,0.00024899,2]
[390883788,1760193038511,-500.0,0.00024899,2]
[390883789,1760193038521,-500.0,0.00024899,2]
[390883790,1760193038530,-500.0,0.00024899,2]
[390883791,1760193038541,-500.0,0.00024899,2]
[390883792,1760193038550,-500.0,0.00024899,2]
[390883793,1760193038560,-500.0,0.00024899,2]
[390883794,1760193038569,-500.0,0.00024899,2]
[390883795,1760193038579,-500.0,0.00024899,2]
[390883796,1760193038588,-500.0,0.00024899,2]
[390883797,1760193038597,-500.0,0.00024899,2]
[390883798,1760193038607,-500.0,0.00024899,2]
[390883799,1760193038616,-500.0,0.00024899,2]
[390883800,1760193038627,-500.0,0.00024899,2]
[390883801,1760193038636,-500.0,0.00024899,2]
[390883802,1760193038646,-500.0,0.00024899,2]
[390883803,1760193038655,-500.0,0.00024899,2]
[390883804,1760193038665,-500.0,0.00024899,2]
[390883805,1760193038674,-500.0,0.00024899,2]
[390883806,1760193038683,-500.0,0.00024899,2]
[390883807,1760193038692,-500.0,0.00024899,2]
[390883808,1760193038701,-500.0,0.00024899,2]
[390883809,1760193038711,-500.0,0.00024899,2]
[390883810,1760193038720,-500.0,0.00024899,2]
[390883811,1760193038730,-434053.205164,0.000249,2]
[390883812,1760193038739,-500.0,0.000249,5]
[390883813,1760193038748,-172.5,0.00024924,2]
[390883814,1760193038758,-500.0,0.00024973,2]
[390883815,1760193038767,-500.0,0.00024973,2]
[390883816,1760193038777,-500.0,0.00024973,2]
[390883817,1760193038788,-500.0,0.00024973,2]
[390883818,1760193038798,-28713.50577354,0.0002499,2]
[390883819,1760193038807,-230.66966442,0.0002499,2]
[390883820,1760193038816,-500.0,0.00024999,2]
[390883821,1760193038825,-381.59348694,0.00024999,2]
[390883822,1760193038834,-317.37561607,0.00024999,2]
[390883823,1760193038844,-3000.0,0.00025,2]
[390883824,1760193038853,-202.58,0.00025,21]
[390883825,1760193038863,-12035.55156866,0.00025,2]
[390883826,1760193038872,-106951.40880016,0.00025,2]
[390883827,1760193038882,-90000.0,0.00025,2]
[390883828,1760193038892,-1213.12782562,0.00025065,2]
[390883829,1760193038901,-151.0,0.000252,10]
[390883830,1760193038911,-175.0,0.00025344,3]
[390883831,1760193038920,-175.0,0.00025344,3]
[390883832,1760193038929,-175.0,0.00025344,3]
[390883833,1760193038939,-175.09993288,0.00025344,3]
[390883834,1760193038948,-157.0,0.00025344,3]
[390883835,1760193038958,-157.0,0.00025344,3]
[390883836,1760193038967,-157.0,0.00025344,3]
[390883837,1760193038976,-157.0,0.00025344,3]
[390883838,1760193038986,-157.0,0.00025344,3]
[390883839,1760193038995,-157.0,0.00025344,3]
[390883840,1760193039005,-300.0,0.00025387,20]
[390883841,1760193039015,-300.0,0.00025387,20]
[390883842,1760193039025,-300.0,0.00025387,20]
[390883843,1760193039037,-300.0,0.00025387,20]
[390883844,1760193039046,-300.0,0.00025387,20]
[390883845,1760193039056,-300.0,0.00025387,20]
[390883846,1760193039066,-300.0,0.00025387,20]
[390883847,1760193039075,-300.0,0.00025387,20]
[390883848,1760193039084,-300.0,0.00025387,20]
[390883849,1760193039093,-300.0,0.00025387,20]
[390883850,1760193039102,-300.0,0.00025387,20]
[390883851,1760193039120,-300.0,0.00025387,20]
[390883852,1760193039130,-300.0,0.00025387,20]
[390883853,1760193039139,-300.0,0.00025387,20]
[390883854,1760193039148,-300.0,0.00025387,20]
[390883855,1760193039158,-600.0,0.00025387,20]
[390883856,1760193039168,-1000.0,0.00025421,2]
[390883857,1760193039178,-329.0,0.00025464,3]
[390883858,1760193039188,-329.0,0.00025464,3]
[390883859,1760193039198,-329.0,0.00025464,3]
[390883860,1760193039207,-329.0,0.00025464,3]
[390883861,1760193039218,-329.0,0.00025464,3]
[390883862,1760193039231,-329.0,0.00025464,3]
[390883863,1760193039241,-329.0,0.00025464,3]
[390883864,1760193039251,-329.0,0.00025464,3]
[390883865,1760193039262,-329.0,0.00025464,3]
[390883866,1760193039272,-329.0,0.00025464,3]
[390883867,1760193039282,-329.0,0.00025464,3]
[390883868,1760193039294,-329.0,0.00025464,3]
[390883869,1760193039306,-329.0,0.00025464,3]
[390883870,1760193039316,-329.0,0.00025464,3]
[390883871,1760193039326,-329.0,0.00025464,3]
[390883872,1760193039336,-329.0,0.00025464,3]
[390883873,1760193039345,-329.0,0.00025464,3]
[390883874,1760193039355,-329.0,0.00025464,3]
[390883875,1760193039366,-329.0,0.00025464,3]
[390883876,1760193039375,-329.0,0.00025464,3]
[390883877,1760193039385,-329.0,0.00025464,3]
[390883878,1760193039395,-329.0,0.00025464,3]
[390883879,1760193039405,-329.0,0.00025464,3]
[390883880,1760193039415,-329.0,0.00025464,3]
[390883881,1760193039424,-329.0,0.00025464,3]
[390883882,1760193039434,-329.0,0.00025464,3]
[390883883,1760193039444,-151.0,0.00025479,7]
[390883884,1760193039454,-151.0,0.00025479,7]
[390883885,1760193039464,-166.0,0.00025479,3]
[390883886,1760193039473,-166.0,0.00025479,3]
[390883887,1760193039483,-166.0,0.00025479,3]
[390883888,1760193039492,-172.0,0.00025479,3]
[390883889,1760193039502,-329.0,0.00025479,3]
[390883891,1760193039512,-329.0,0.00025479,3]
[390883893,1760193039522,-329.0,0.00025479,3]
[390883894,1760193039531,-329.0,0.00025479,3]
[390883895,1760193039542,-329.0,0.00025479,3]
[390883896,1760193039551,-329.0,0.00025479,3]
[390883897,1760193039561,-329.0,0.00025479,3]
[390883898,1760193039570,-329.0,0.00025479,3]
[390883899,1760193039580,-329.0,0.00025479,3]
[390883900,1760193039589,-329.0,0.00025479,3]
[390883901,1760193039599,-329.0,0.00025479,3]
[390883902,1760193039608,-329.0,0.00025479,3]
[390883903,1760193039617,-329.0,0.00025479,3]
[390883904,1760193039626,-329.0,0.00025479,3]
[390883905,1760193039635,-329.0,0.00025479,3]
[390883906,1760193039644,-329.0,0.00025479,3]
[390883907,1760193039655,-2609.37557469,0.00025479,3]
[390883908,1760193039664,-166.0,0.00025491,3]
[390883909,1760193039673,-172.0,0.00025491,3]
[390883910,1760193039682,-160.05791752,0.00025491,3]
[390883911,1760193039691,-1000.0,0.00025521,2]
[390883912,1760193039700,-1000.0,0.00025521,2]
[390883913,1760193039710,-1000.0,0.00025521,2]
[390883914,1760193039719,-195.0,0.00025524,2]
[390883915,1760193039727,-154.809388,0.00025626,9]
[390883916,1760193039737,-1108.42,0.00025694,3]
[390883917,1760193039746,-554.2,0.00025694,3]
[390883918,1760193039755,-151.0,0.00025694,7]
[390883919,1760193039764,-151.0,0.000257,15]
[390883920,1760193039773,-731.98,0.00025731,2]
[390883921,1760193039782,-298.08050243,0.00025881,2]
[390883922,1760193039791,-2609.37557469,0.00025893,2]
[390883923,1760193039800,-1000.0,0.000259,3]
[390883924,1760193039809,-1058.32870369,0.000259,2]
[390883925,1760193039819,-172.65316788,0.000259,2]
[390883926,1760193039828,-151.0,0.000259,7]
[390883927,1760193039838,-222.248011,0.000259,7]
[390883928,1760193039848,-500.0,0.00025968,2]
[390883929,1760193039856,-168.0,0.00025975,2]
[390883930,1760193039865,-666.66666667,0.00025996,2]
[390883931,1760193039875,-666.66666667,0.00025996,2]
[390883932,1760193039884,-666.66666667,0.00025996,2]
[390883933,1760193039893,-1663.11704087,0.00026,30]
[390883934,1760193039902,-999.0,0.00026027,2]
[390883935,1760193039911,-154.809388,0.00026068,9]
[390883936,1760193039920,-1000.0,0.00026068,2]
[390883937,1760193039930,-1500.0,0.00026068,2]
[390883938,1760193039939,-217.5,0.00026124,2]
[390883939,1760193039948,-2832.24099242,0.00026134,2]
[390883940,1760193039958,-1058.32870369,0.000262,2]
[390883941,1760193039967,-172.65316788,0.000262,2]
[390883942,1760193039976,-230.66966442,0.00026299,2]
[390883943,1760193039985,-151.0,0.000263,20]
[390883944,1760193039994,-362.6057356,0.00026301,2]
[390883945,1760193040003,-153.0,0.00026301,2]
[390883946,1760193040012,-666.66666667,0.00026309,6]
[390883947,1760193040021,-666.66666667,0.00026309,6]
[390883948,1760193040030,-666.66666667,0.00026309,6]
[390883949,1760193040041,-666.66666667,0.00026309,6]
[390883950,1760193040051,-370.5933179,0.00026329,2]
[390883951,1760193040061,-320.0,0.00026378,2]
[390883952,1760193040070,-300.0,0.00026378,2]
[390883953,1760193040080,-300.0,0.00026378,2]
[390883954,1760193040090,-300.0,0.00026378,2]
[390883955,1760193040099,-420.0,0.00026378,2]
[390883956,1760193040108,-1058.32870369,0.000264,2]
[390883957,1760193040118,-666.66666667,0.00026465,8]
[390883958,1760193040127,-666.66666667,0.00026465,8]
[390883960,1760193040137,-666.66666667,0.00026465,8]
[390883961,1760193040146,-666.66666667,0.00026465,8]
[390883962,1760193040156,-196.0,0.0002658,15]
[390883963,1760193040166,-783.8396544,0.00026599,2]
[390883965,1760193040175,-2000.0,0.00026616,2]
[390883981,1760193040350,-666.66666667,0.00026622,10]
[390883982,1760193040360,-666.66666667,0.00026622,10]
[390883983,1760193040370,-666.66666667,0.00026622,10]
[390883984,1760193040379,-666.66666667,0.00026622,10]
[390883985,1760193040388,-1137.914826,0.00026676,2]
[390883986,1760193040398,-1058.32870369,0.000267,2]
[390883987,1760193040407,-500.0,0.000267,3]
[390883988,1760193040416,-240.0,0.00026724,2]
[390883989,1760193040425,-666.66666667,0.00026778,12]
[390883990,1760193040434,-666.66666667,0.00026778,12]
[390883991,1760193040443,-666.66666667,0.00026778,12]
[390883992,1760193040452,-151.0,0.000268,15]
[390883993,1760193040461,-297.8851395,0.00026849,2]
[390883994,1760193040470,-229.0416595,0.00026849,2]
[390883995,1760193040479,-152.198179,0.00026899,9]
[390883996,1760193040488,-1070.0,0.000269,4]
[390883997,1760193040498,-1058.32870369,0.000269,2]
[390883998,1760193040507,-666.66666667,0.00026934,14]
[390883999,1760193040516,-666.66666667,0.00026934,14]
[390884000,1760193040525,-666.66666667,0.00026934,14]
[390884001,1760193040536,-359.326944,0.00026941,2]
[390884002,1760193040545,-502.93689473,0.00026976,2]
[390884003,1760193040554,-151.0,0.00026986,7]
[390884004,1760193040564,-152.198179,0.00026999,9]
[390884005,1760193040573,-2001.27,0.00027,7]
[390884006,1760193040582,-157.20358038,0.00027041,16]
[390884007,1760193040591,-1709.2236322,0.00027041,2]
[390884008,1760193040600,-666.66666667,0.00027091,16]
[390884009,1760193040609,-666.66666667,0.00027091,16]
[390884010,1760193040618,-666.66666667,0.00027091,16]
[390884011,1760193040627,-666.66666667,0.00027091,16]
[390884012,1760193040637,-2500.0,0.00027164,2]
[390884013,1760193040646,-1058.32870369,0.000272,2]
[390884014,1760193040656,-666.66666667,0.00027247,18]
[390884015,1760193040664,-666.66666667,0.00027247,18]
[390884016,1760193040674,-666.66666667,0.00027247,18]
[390884017,1760193040683,-154.809388,0.00027292,10]
[390884018,1760193040692,-150.0,0.000273,2]
[390884019,1760193040701,-262.5,0.00027324,2]
[390884020,1760193040710,-267.0,0.00027397,49]
[390884021,1760193040719,-999.0,0.00027397,4]
[390884022,1760193040728,-151.0,0.000274,17]
[390884023,1760193040737,-2832.24099242,0.00027443,2]
[390884024,1760193040747,-878.37,0.00027447,2]
[390884025,1760193040756,-391.9198272,0.00027456,30]
[390884026,1760193040765,-1058.32870369,0.000275,2]
[390884027,1760193040775,-381.3793428,0.00027539,2]
[390884028,1760193040786,-230.66966442,0.00027614,2]
[390884029,1760193040795,-500.0,0.00027624,5]
[390884030,1760193040805,-500.0,0.00027624,5]
[390884031,1760193040814,-500.0,0.00027624,5]
[390884032,1760193040825,-500.0,0.00027624,5]
[390884033,1760193040838,-2999.9357,0.00027712,2]
[390884034,1760193040847,-154.809388,0.00027744,2]
[390884035,1760193040857,-1058.32870369,0.000278,2]
[390884036,1760193040867,-162.8757457,0.00027867,30]
[390884037,1760193040876,-191.4794344,0.00027867,30]
[390884038,1760193040885,-153.5971104,0.00027867,30]
[390884039,1760193040895,-297.8851395,0.00027867,30]
[390884040,1760193040905,-153.0,0.00027867,30]
[390884041,1760193040914,-588.4106815,0.00027867,30]
[390884042,1760193040924,-27858.60271519,0.000279,3]
[390884043,1760193040933,-2609.37557469,0.000279,3]
[390884044,1760193040943,-285.0,0.00027924,2]
[390884045,1760193040952,-720.0,0.00027926,30]
[390884046,1760193040962,-326.8684698,0.00027969,30]
[390884047,1760193040971,-500.0,0.00027971,5]
[390884048,1760193040980,-151.0,0.00027971,30]
[390884049,1760193040990,-151.0,0.00027971,30]
[390884050,1760193041000,-164.363891,0.00027971,30]
[390884051,1760193041009,-3787.94,0.00028,2]
[390884052,1760193041018,-1000.0,0.00028,2]
[390884053,1760193041028,-1058.32870369,0.00028,2]
[390884054,1760193041040,-151.0,0.00028,14]
[390884055,1760193041049,-151.0,0.00028,30]
[390884056,1760193041059,-157.20358038,0.00028133,30]
[390884057,1760193041068,-157.20358038,0.00028133,30]
[390884058,1760193041079,-500.0,0.00028172,5]
[390884059,1760193041088,-1000.0,0.00028172,5]
[390884060,1760193041098,-1002.26458203,0.00028172,5]
[390884061,1760193041108,-500.0,0.00028172,5]
[390884062,1760193041118,-154.809388,0.00028244,2]
[390884063,1760193041128,-197.0,0.0002827,20]
[390884064,1760193041138,-1058.32870369,0.000283,2]
[390884065,1760193041148,-4196.0,0.00028312,2]
[390884066,1760193041157,-329.0,0.00028354,7]
[390884067,1760193041167,-329.0,0.00028354,7]
[390884068,1760193041176,-329.0,0.00028354,7]
[390884069,1760193041185,-329.0,0.00028354,7]
[390884070,1760193041195,-329.0,0.00028354,7]
[390884071,1760193041204,-329.0,0.00028354,7]
[390884072,1760193041214,-329.0,0.00028354,7]
[390884073,1760193041224,-329.0,0.00028354,7]
[390884074,1760193041238,-329.0,0.00028354,7]
[390884075,1760193041247,-329.0,0.00028354,7]
[390884076,1760193041256,-329.0,0.00028354,7]
[390884077,1760193041266,-329.0,0.00028354,7]
[390884078,1760193041276,-329.0,0.00028354,7]
[390884079,1760193041287,-329.0,0.00028354,7]
[390884080,1760193041297,-329.0,0.00028354,7]
[390884081,1760193041307,-329.0,0.00028354,7]
[390884082,1760193041317,-329.0,0.00028354,7]
[390884083,1760193041327,-329.0,0.00028354,7]
[390884084,1760193041336,-329.0,0.00028354,7]
[390884085,1760193041346,-329.0,0.00028354,7]
[390884086,1760193041355,-329.0,0.00028354,7]
[390884087,1760193041365,-329.0,0.00028354,7]
[390884088,1760193041375,-329.0,0.00028354,7]
[390884089,1760193041384,-334.41020079,0.00028354,7]
[390884090,1760193041393,-2609.37557469,0.00028354,7]
[390884091,1760193041403,-980.0,0.00028381,2]
[390884092,1760193041412,-630.0,0.00028381,2]
[390884093,1760193041421,-2159.0,0.00028381,2]
[390884094,1760193041430,-415.126,0.00028381,2]
[390884095,1760193041440,-151.0,0.000285,20]
[390884096,1760193041450,-500.0,0.00028519,5]
[390884097,1760193041460,-307.5,0.00028524,2]
[390884098,1760193041470,-324.0,0.00028595,2]
[390884099,1760193041479,-154.809388,0.00028613,7]
[390884100,1760193041488,-297.8851395,0.00028689,30]
[390884101,1760193041498,-297.8851395,0.00028689,30]
[390884102,1760193041507,-227.3955135,0.0002869,30]
[390884103,1760193041517,-500.0,0.0002872,5]
[390884104,1760193041527,-2832.24099242,0.00028753,2]
[390884105,1760193041536,-999.0,0.00028767,6]
[390884106,1760193041546,-230.66966442,0.0002879,2]
[390884107,1760193041555,-2609.37557469,0.000288,30]
[390884108,1760193041565,-5034.4509028,0.00028806,30]
[390884109,1760193041574,-150.0,0.00028891,2]
[390884110,1760193041583,-150.0,0.00028891,2]
[390884111,1760193041593,-150.0,0.00028891,2]
[390884112,1760193041602,-154.809388,0.00028898,20]
[390884113,1760193041612,-230.66966442,0.0002899,2]
[390884114,1760193041621,-8000.0,0.00029,30]
[390884115,1760193041631,-33823.99087506,0.00029,60]
[390884116,1760193041640,-194.7823746,0.00029,120]
[390884117,1760193041650,-151.0,0.00029,15]
[390884118,1760193041660,-1016.76,0.00029,2]
[390884119,1760193041669,-151.0,0.00029,30]
[390884120,1760193041679,-151.0,0.00029,30]
[390884121,1760193041689,-151.0,0.00029,30]
[390884122,1760193041699,-154.809388,0.00029057,7]
[390884123,1760193041708,-151.0,0.000291,19]
[390884124,1760193041717,-154.809388,0.00029111,30]
[390884125,1760193041727,-154.809388,0.00029111,32]
[390884126,1760193041738,-330.0,0.00029124,2]
[390884127,1760193041747,-2603.29,0.00029132,30]
[390884128,1760193041757,-1024.77,0.00029162,2]
[390884129,1760193041766,-1016.76,0.00029174,2]
[390884130,1760193041776,-1016.76,0.00029348,2]
[390884131,1760193041786,-200.0,0.00029418,120]
[390884132,1760193041795,-300.0402692,0.0002947,20]
[390884133,1760193041805,-154.809388,0.00029471,20]
[390884134,1760193041814,-151.0,0.000296,14]
[390884135,1760193041823,-4842.85747034,0.00029625,13]
[390884136,1760193041840,-14560.24316962,0.00029625,13]
[390884138,1760193043024,-827.5,0.0002489,10]
[390884139,1760193043034,-983.37936004,0.00029625,13]
[390884140,1760193043044,-12028.99345882,0.00029643,2]
[390884141,1760193043054,-352.5,0.00029724,2]
[390884142,1760193043063,-11994.78,0.00029753,13]
[390884144,1760193043072,-155.39581635,0.000298,90]
[390884145,1760193043081,-152.198179,0.000298,32]
[390884146,1760193043091,-3000.0,0.0003,3]
[390884147,1760193043100,-296.9245,0.0003,2]
[390884148,1760193043110,-173.956,0.0003,2]
[390884149,1760193043119,-277.0,0.0003,2]
[390884150,1760193043128,-800.0,0.0003,120]
[390884151,1760193043138,-1611.36265081,0.00030059,2]
[390884152,1760193043148,-2832.24099242,0.00030062,2]
[390884153,1760193043158,-230.66966442,0.0003009,2]
[390884154,1760193043167,-500.0,0.00030091,11]
[390884155,1760193043176,-500.0,0.00030098,11]
[390884156,1760193043186,-923.0,0.000301,2]
[390884157,1760193043195,-9286.62,0.000301,2]
[390884158,1760193043205,-934.05941831,0.000301,2]
[390884159,1760193043214,-280.6,0.000301,2]
[390884160,1760193043227,-250.0,0.000301,10]
[390884161,1760193043240,-10908.689062,0.00030113,60]
[390884162,1760193043251,-1666.0,0.00030113,60]
[390884163,1760193043260,-930.97,0.0003013,60]
[390884164,1760193043271,-4078.0,0.0003013,120]
[390884165,1760193043280,-861.87264444,0.0003013,15]
[390884166,1760193043293,-285.06624936,0.0003013,2]
[390884167,1760193043306,-237.05,0.00030136,120]
[390884168,1760193043318,-999.0,0.00030136,8]
[390884169,1760193043328,-359.2436038,0.00030137,120]
[390884170,1760193043337,-461.33932884,0.00030146,2]
[390884171,1760193043347,-152.198179,0.00030146,7]
[390884172,1760193043356,-461.33932884,0.00030149,2]
[390884173,1760193043366,-202.2756177,0.0003015,120]
[390884174,1760193043376,-831.61933685,0.0003015,120]
[390884175,1760193043386,-200.0,0.00030155,10]
[390884176,1760193043395,-201.01608941,0.00030155,10]
[390884177,1760193043405,-31741.06799482,0.00030156,30]
[390884183,1760193101948,272.64545565,0.00024253,2]
[390884184,1760193112451,150.0,0.00018998,2]
[390884185,1760193112905,253.47,0.00020725,2]
[390884186,1760193113328,380.2,0.00022452,2]
[390884187,1760193113734,506.93,0.00024179,2]
[390884189,1760193192378,150.0,0.00019014,2]
[390884190,1760193192793,220.61,0.00020743,2]
[390884191,1760193193340,330.92,0.00022472,2]
[390884192,1760193193786,441.23,0.000242,2]
[390884193,1760193205808,8857.25,0.00024234,2]
[390884194,1760193205832,10000.01,0.00024234,2]
[390884195,1760193205856,10000.01,0.00024234,2]
[390884196,1760193205879,10000.01,0.00024234,2]
[390884197,1760193205902,10000.01,0.00024234,2]
[390884198,1760193205925,10000.01,0.00024234,2]
[390884199,1760193205952,10000.01,0.00024234,2]
[390884200,1760193205976,10000.01,0.00024234,2]
[390884201,1760193206001,10000.01,0.00024234,2]
[390884202,1760193206028,10000.01,0.00024234,2]
[390884203,1760193216525,319.43,0.00024224,3]
[390884204,1760193226315,5000.0,0.00024234,2]
[390884205,1760193227151,159.72,0.00024224,3]
[390884206,1760193238074,479.18,0.00024224,3]
[390884207,1760193242154,4361.11,0.00024234,2]
[390884208,1760193242181,638.89,0.00024234,2]
[390884209,1760193243101,300.0,0.00024233,2]
[390884210,1760193250239,5000.0,0.00024234,2]
[390884211,1760193265908,5000.0,0.00024112,2]
[390884212,1760193271347,150.0,0.00019365,2]
[390884213,1760193271760,244.65,0.00021125,2]
[390884214,1760193272178,366.97,0.00022886,2]
[390884215,1760193288661,4238.39,0.00024112,2]
[390884216,1760193288685,761.61,0.00024112,2]
[390884217,1760193301759,300.0,0.00024232,2]
[390884218,1760193302117,300.0,0.00024232,2]
[390884219,1760193302150,300.0,0.00024232,2]
[390884220,1760193302390,300.0,0.00024232,2]
[390884221,1760193303218,300.0,0.00024232,2]
[390884222,1760193308184,1200.0,0.00024232,2]
[390884223,1760193311677,5000.0,0.00024233,2]
[390884224,1760193334452,5000.0,0.00024233,2]
[390884225,1760193340563,0.01,0.00024224,3]
[390884226,1760193340587,159.7,0.00024224,3]
[390884227,1760193342032,-500.0,0.00024233,2]
[390884228,1760193342064,-644.34759748,0.00024233,2]
[390884229,1760193342094,-500.0,0.00024233,2]
[390884230,1760193342124,-500.0,0.00024233,2]
[390884231,1760193342154,-500.0,0.00024233,2]
[390884232,1760193342186,-500.0,0.00024233,2]